[Event "*** Titled Tuesday Blitz"]
[Site "Chess.com"]
[Date "2020.05.05"]
[Round "1"]
[White "profofchess"]
[Black "GHANDEEVAM2003"]
[Result "0-1"]
[WhiteElo "2450"]
[BlackElo "2881"]
[TimeControl "180+1"]
[EndTime "10:06:05 PDT"]
[Termination "GHANDEEVAM2003 won by resignation"]

1. e4 {[%clk 0:03:00.9]} 1... e6 {[%clk 0:02:57.6]} 2. d4 {[%clk 0:03:00.1]}
2... d5 {[%clk 0:02:57.8]} 3. Nc3 {[%clk 0:03:00.6]} 3... Nf6 {[%clk 0:02:57]}
4. Bg5 {[%clk 0:02:59.8]} 4... Be7 {[%clk 0:02:56.6]} 5. e5 {[%clk 0:02:59.7]}
5... Nfd7 {[%clk 0:02:57.2]} 6. h4 {[%clk 0:02:59.9]} 6... a6 {[%clk 0:02:57.1]}
7. Qg4 {[%clk 0:02:58.8]} 7... g6 {[%clk 0:02:57]} 8. Bxe7 {[%clk 0:02:57.7]}
8... Qxe7 {[%clk 0:02:57.9]} 9. h5 {[%clk 0:02:58.1]} 9... Rg8 {[%clk
0:02:57.7]} 10. hxg6 {[%clk 0:02:44.9]} 10... hxg6 {[%clk 0:02:58.6]} 11. f4
{[%clk 0:02:39.7]} 11... c5 {[%clk 0:02:55.8]} 12. Nf3 {[%clk 0:02:39]} 12...
Nc6 {[%clk 0:02:55]} 13. dxc5 {[%clk 0:02:36.2]} 13... Qxc5 {[%clk 0:02:52.4]}
14. O-O-O {[%clk 0:02:34.3]} 14... b5 {[%clk 0:02:51.6]} 15. Kb1 {[%clk
0:02:31.5]} 15... Ne7 {[%clk 0:02:44]} 16. Ng5 {[%clk 0:02:12.6]} 16... Nf5
{[%clk 0:02:42.2]} 17. Qh3 {[%clk 0:01:46.9]} 17... Bb7 {[%clk 0:02:37.5]} 18.
Bd3 {[%clk 0:01:45]} 18... Rf8 {[%clk 0:02:25.5]} 19. g4 {[%clk 0:01:31.8]}
19... Ne3 {[%clk 0:02:22.2]} 20. f5 {[%clk 0:01:21.8]} 20... Nxd1 {[%clk
0:02:17.1]} 21. Rxd1 {[%clk 0:01:22.7]} 21... O-O-O {[%clk 0:02:00.7]} 22. fxe6
{[%clk 0:01:19.7]} 22... Nxe5 {[%clk 0:02:00.9]} 23. exf7 {[%clk 0:01:15.1]}
23... Qe7 {[%clk 0:01:53.1]} 24. Nf3 {[%clk 0:00:32.3]} 24... Nxf3 {[%clk
0:01:47.9]} 25. Qxf3 {[%clk 0:00:33.2]} 25... d4 {[%clk 0:01:48.4]} 26. Ne4
{[%clk 0:00:32.4]} 26... Rxf7 {[%clk 0:01:47.8]} 27. Qe2 {[%clk 0:00:20.1]}
27... Rf4 {[%clk 0:01:11]} 28. Re1 {[%clk 0:00:17]} 28... Bxe4 {[%clk 0:01:11]}
29. Bxe4 {[%clk 0:00:15.5]} 29... Re8 {[%clk 0:01:11.5]} 30. Bb7+ {[%clk
0:00:15.5]} 30... Kd8 {[%clk 0:01:12.1]} 31. Qxe7+ {[%clk 0:00:09.1]} 31... Rxe7
{[%clk 0:01:13]} 32. Rd1 {[%clk 0:00:07.2]} 32... Rxb7 {[%clk 0:01:12.3]} 0-1

[Event "*** Titled Tuesday Blitz"]
[Site "Chess.com"]
[Date "2020.05.05"]
[Round "1"]
[White "ChessTraining77"]
[Black "chessuriel"]
[Result "1-0"]
[WhiteElo "2550"]
[BlackElo "2200"]
[TimeControl "180+1"]
[EndTime "10:06:07 PDT"]
[Termination "ChessTraining77 won by resignation"]

1. e4 {[%clk 0:03:00.9]} 1... c5 {[%clk 0:02:59.2]} 2. Nf3 {[%clk 0:03:00.3]}
2... e6 {[%clk 0:02:59.3]} 3. d4 {[%clk 0:02:59.6]} 3... cxd4 {[%clk 0:03:00.2]}
4. Nxd4 {[%clk 0:02:59.7]} 4... Nc6 {[%clk 0:03:00.3]} 5. Nc3 {[%clk 0:02:59.5]}
5... Qc7 {[%clk 0:02:59.4]} 6. Be3 {[%clk 0:02:59.1]} 6... Nf6 {[%clk
0:02:58.8]} 7. f4 {[%clk 0:02:47.6]} 7... Bb4 {[%clk 0:02:56.3]} 8. Nb5 {[%clk
0:02:47.2]} 8... Qb8 {[%clk 0:02:55.7]} 9. e5 {[%clk 0:02:46.6]} 9... Ne4 {[%clk
0:02:52.3]} 10. Qd3 {[%clk 0:02:42.5]} 10... f5 {[%clk 0:02:31.7]} 11. a3 {[%clk
0:02:35.1]} 11... Nxc3 {[%clk 0:02:18.1]} 12. Nxc3 {[%clk 0:02:12.1]} 12... Be7
{[%clk 0:02:14.3]} 13. Rd1 {[%clk 0:02:05.7]} 13... O-O {[%clk 0:02:13.1]} 14.
Be2 {[%clk 0:02:05.7]} 14... Qc7 {[%clk 0:01:55]} 15. Nb5 {[%clk 0:01:56.1]}
15... Qa5+ {[%clk 0:01:51.6]} 16. b4 {[%clk 0:01:53.7]} 16... Qd8 {[%clk
0:01:51]} 17. O-O {[%clk 0:01:50.3]} 17... a6 {[%clk 0:01:29.1]} 18. Nd6 {[%clk
0:01:49.1]} 18... Bxd6 {[%clk 0:01:26.9]} 19. Qxd6 {[%clk 0:01:48.4]} 19... Qe8
{[%clk 0:01:18.9]} 20. Kh1 {[%clk 0:01:42.5]} 20... Qe7 {[%clk 0:01:05.8]} 21.
Bf3 {[%clk 0:01:34.7]} 21... Qxd6 {[%clk 0:01:03.9]} 22. Rxd6 {[%clk 0:01:34.1]}
22... h6 {[%clk 0:00:54.8]} 23. c4 {[%clk 0:01:29.9]} 23... Kh7 {[%clk
0:00:52.7]} 24. h3 {[%clk 0:01:27.3]} 24... Rg8 {[%clk 0:00:51.8]} 25. g4 {[%clk
0:01:26.4]} 25... g6 {[%clk 0:00:46.8]} 26. Bf2 {[%clk 0:01:19.2]} 26... Ne7
{[%clk 0:00:43.6]} 27. Bh4 {[%clk 0:01:18.1]} 27... Nc6 {[%clk 0:00:42.7]} 28.
Bf6 {[%clk 0:01:16.8]} 28... Rf8 {[%clk 0:00:35.8]} 29. Rfd1 {[%clk 0:01:14.3]}
29... Rf7 {[%clk 0:00:33.6]} 30. h4 {[%clk 0:01:13.4]} 30... fxg4 {[%clk
0:00:26]} 31. Bxg4 {[%clk 0:01:13.4]} 31... Ne7 {[%clk 0:00:26.1]} 32. Rxd7
{[%clk 0:01:05.9]} 32... Bxd7 {[%clk 0:00:25.2]} 33. Rxd7 {[%clk 0:01:06]} 33...
Re8 {[%clk 0:00:25.4]} 34. Bxe6 {[%clk 0:01:05.9]} 34... Rff8 {[%clk 0:00:21.3]}
35. Bxe7 {[%clk 0:01:05.5]} 35... Rxf4 {[%clk 0:00:21.2]} 36. Bf6+ {[%clk
0:01:04.5]} 1-0

[Event "*** Titled Tuesday Blitz"]
[Site "Chess.com"]
[Date "2020.05.05"]
[Round "1"]
[White "annacramling"]
[Black "orkan85"]
[Result "0-1"]
[WhiteElo "1923"]
[BlackElo "2478"]
[TimeControl "180+1"]
[EndTime "10:06:13 PDT"]
[Termination "orkan85 won by resignation"]

1. d4 {[%clk 0:02:55]} 1... Nf6 {[%clk 0:02:59.6]} 2. c4 {[%clk 0:02:54]} 2...
e6 {[%clk 0:02:59.8]} 3. Nc3 {[%clk 0:02:54.5]} 3... Bb4 {[%clk 0:02:59.7]} 4.
Qc2 {[%clk 0:02:54.9]} 4... O-O {[%clk 0:02:59.1]} 5. e4 {[%clk 0:02:54.9]} 5...
d5 {[%clk 0:02:59.2]} 6. e5 {[%clk 0:02:55.2]} 6... Ne4 {[%clk 0:02:59.7]} 7.
Bd3 {[%clk 0:02:55.4]} 7... c5 {[%clk 0:02:59.7]} 8. Nf3 {[%clk 0:02:52.9]} 8...
cxd4 {[%clk 0:02:56.6]} 9. Nxd4 {[%clk 0:02:52.5]} 9... Nd7 {[%clk 0:02:53.1]}
10. Nf3 {[%clk 0:02:43.4]} 10... Ndc5 {[%clk 0:02:40.2]} 11. O-O {[%clk
0:02:29.3]} 11... Nxd3 {[%clk 0:02:20.7]} 12. Qxd3 {[%clk 0:02:28.5]} 12... Bxc3
{[%clk 0:01:33.1]} 13. bxc3 {[%clk 0:02:27.4]} 13... b6 {[%clk 0:01:17.7]} 14.
cxd5 {[%clk 0:02:18.1]} 14... exd5 {[%clk 0:01:07]} 15. Ba3 {[%clk 0:01:51.7]}
15... Re8 {[%clk 0:01:06.6]} 16. c4 {[%clk 0:01:39.5]} 16... Ba6 {[%clk
0:01:05.7]} 17. Rac1 {[%clk 0:01:09.4]} 17... Rc8 {[%clk 0:01:03.7]} 18. Rfd1
{[%clk 0:00:43.3]} 18... Bxc4 {[%clk 0:01:02.9]} 19. Qb1 {[%clk 0:00:28.3]}
19... Qd7 {[%clk 0:01:03.1]} 20. Nd2 {[%clk 0:00:18.7]} 20... Nxd2 {[%clk
0:00:59.3]} 21. Rxd2 {[%clk 0:00:19.6]} 21... Rxe5 {[%clk 0:00:57.8]} 22. Qc2
{[%clk 0:00:16.1]} 22... Qe6 {[%clk 0:00:51.2]} 23. Qd1 {[%clk 0:00:14.8]} 23...
Re8 {[%clk 0:00:49.7]} 24. Qf1 {[%clk 0:00:03.1]} 24... Bxf1 {[%clk 0:00:49.2]}
0-1

[Event "*** Titled Tuesday Blitz"]
[Site "Chess.com"]
[Date "2020.05.05"]
[Round "1"]
[White "VitaliyBernadskiy"]
[Black "Apocalyps999"]
[Result "0-1"]
[WhiteElo "2671"]
[BlackElo "2404"]
[TimeControl "180+1"]
[EndTime "10:06:17 PDT"]
[Termination "Apocalyps999 won by resignation"]

1. e4 {[%clk 0:02:59]} 1... c5 {[%clk 0:02:59]} 2. Nf3 {[%clk 0:02:56.3]} 2...
e6 {[%clk 0:02:51.3]} 3. d4 {[%clk 0:02:54.4]} 3... cxd4 {[%clk 0:02:51.3]} 4.
Nxd4 {[%clk 0:02:55.3]} 4... Nf6 {[%clk 0:02:51.1]} 5. Nc3 {[%clk 0:02:55.9]}
5... Nc6 {[%clk 0:02:51.3]} 6. Nxc6 {[%clk 0:02:54.1]} 6... bxc6 {[%clk
0:02:50.5]} 7. e5 {[%clk 0:02:54.6]} 7... Nd5 {[%clk 0:02:50.4]} 8. Ne4 {[%clk
0:02:54.9]} 8... Qc7 {[%clk 0:02:50.2]} 9. f4 {[%clk 0:02:55]} 9... f5 {[%clk
0:02:47.5]} 10. exf6 {[%clk 0:02:49]} 10... gxf6 {[%clk 0:02:47.4]} 11. c4
{[%clk 0:02:32.3]} 11... Nxf4 {[%clk 0:02:46.8]} 12. Qf3 {[%clk 0:02:23.3]}
12... Bb4+ {[%clk 0:02:37.6]} 13. Kd1 {[%clk 0:02:23.3]} 13... e5 {[%clk
0:02:34.7]} 14. Bxf4 {[%clk 0:02:18.8]} 14... exf4 {[%clk 0:02:32.6]} 15. Nxf6+
{[%clk 0:02:17.7]} 15... Kd8 {[%clk 0:02:32.6]} 16. Kc2 {[%clk 0:01:57.7]} 16...
d5 {[%clk 0:02:31.7]} 17. Bd3 {[%clk 0:01:55]} 17... dxc4 {[%clk 0:02:17.3]} 18.
Bxc4 {[%clk 0:01:38.5]} 18... Bf5+ {[%clk 0:02:06]} 19. Bd3 {[%clk 0:01:38.4]}
19... Qe5 {[%clk 0:02:05.8]} 20. Rad1 {[%clk 0:01:37.7]} 20... Kc7 {[%clk
0:02:02.4]} 21. Ne4 {[%clk 0:01:10]} 21... Rab8 {[%clk 0:01:47.7]} 22. b3 {[%clk
0:01:03.7]} 22... Rhd8 {[%clk 0:01:41.3]} 23. Nf2 {[%clk 0:00:54.8]} 23... Qc3+
{[%clk 0:00:53]} 24. Kb1 {[%clk 0:00:54.5]} 24... Ba3 {[%clk 0:00:40]} 25. Qe2
{[%clk 0:00:44.4]} 25... Rxd3 {[%clk 0:00:38.8]} 26. Nxd3 {[%clk 0:00:43.7]}
26... Rd8 {[%clk 0:00:37.1]} 27. Qf2 {[%clk 0:00:21.6]} 0-1

[Event "*** Titled Tuesday Blitz"]
[Site "Chess.com"]
[Date "2020.05.05"]
[Round "1"]
[White "Philosopherrr"]
[Black "Msb2"]
[Result "0-1"]
[WhiteElo "2457"]
[BlackElo "2927"]
[TimeControl "180+1"]
[EndTime "10:06:18 PDT"]
[Termination "Msb2 won by resignation"]

1. e4 {[%clk 0:03:00.5]} 1... e6 {[%clk 0:03:00.1]} 2. d4 {[%clk 0:03:00.1]}
2... d5 {[%clk 0:03:00.7]} 3. Nc3 {[%clk 0:03:00.7]} 3... Nf6 {[%clk 0:03:00.9]}
4. Bg5 {[%clk 0:02:58.3]} 4... dxe4 {[%clk 0:03:00.9]} 5. Nxe4 {[%clk
0:02:57.5]} 5... Be7 {[%clk 0:03:01.2]} 6. Bxf6 {[%clk 0:02:56.3]} 6... Bxf6
{[%clk 0:03:02.1]} 7. Nf3 {[%clk 0:02:54.1]} 7... Nd7 {[%clk 0:03:02.5]} 8. c3
{[%clk 0:02:53.6]} 8... b6 {[%clk 0:02:57.1]} 9. Bd3 {[%clk 0:02:50.4]} 9... Bb7
{[%clk 0:02:54.1]} 10. Qe2 {[%clk 0:02:50.5]} 10... Qe7 {[%clk 0:02:42.4]} 11.
O-O-O {[%clk 0:02:44.8]} 11... O-O {[%clk 0:02:33.9]} 12. h4 {[%clk 0:02:43.6]}
12... c5 {[%clk 0:02:33.7]} 13. dxc5 {[%clk 0:02:41.8]} 13... Nxc5 {[%clk
0:02:32.4]} 14. Nxc5 {[%clk 0:02:41.8]} 14... Qxc5 {[%clk 0:02:29.5]} 15. Kb1
{[%clk 0:02:20.2]} 15... Rad8 {[%clk 0:02:18.7]} 16. Ng5 {[%clk 0:02:13.8]}
16... g6 {[%clk 0:02:09.5]} 17. Ne4 {[%clk 0:02:10.5]} 17... Bxe4 {[%clk
0:02:06.3]} 18. Qxe4 {[%clk 0:02:08]} 18... Rd5 {[%clk 0:02:06.7]} 19. Qf3
{[%clk 0:02:01.6]} 19... Bg7 {[%clk 0:02:06.1]} 20. Be4 {[%clk 0:02:01.5]} 20...
Rd6 {[%clk 0:02:04]} 21. Rxd6 {[%clk 0:02:00.4]} 21... Qxd6 {[%clk 0:02:04.9]}
22. Rd1 {[%clk 0:02:00.8]} 22... Qe7 {[%clk 0:02:03.2]} 23. h5 {[%clk
0:02:00.9]} 23... Rd8 {[%clk 0:02:01.7]} 24. Rxd8+ {[%clk 0:01:59.2]} 24... Qxd8
{[%clk 0:02:02.6]} 25. hxg6 {[%clk 0:01:59.6]} 25... hxg6 {[%clk 0:01:57.6]} 26.
Kc2 {[%clk 0:01:49.5]} 26... Bf6 {[%clk 0:01:57.2]} 27. Qd3 {[%clk 0:01:47.1]}
27... Qc7 {[%clk 0:01:56.1]} 28. g3 {[%clk 0:01:44.5]} 28... Kg7 {[%clk
0:01:56]} 29. a4 {[%clk 0:01:42.9]} 29... Qc5 {[%clk 0:01:55.9]} 30. Qe2 {[%clk
0:01:38.7]} 30... a6 {[%clk 0:01:48.6]} 31. f4 {[%clk 0:01:37.4]} 31... b5
{[%clk 0:01:48.4]} 32. axb5 {[%clk 0:01:37.3]} 32... axb5 {[%clk 0:01:49.3]} 33.
Kb3 {[%clk 0:01:36.9]} 33... Be7 {[%clk 0:01:38.6]} 34. Qd3 {[%clk 0:01:33.9]}
34... Bf6 {[%clk 0:01:30.5]} 35. g4 {[%clk 0:01:29.5]} 35... g5 {[%clk
0:01:29.8]} 36. f5 {[%clk 0:01:28.8]} 36... exf5 {[%clk 0:01:21]} 37. Bxf5
{[%clk 0:01:28.6]} 37... Be5 {[%clk 0:01:18.9]} 38. Bd7 {[%clk 0:01:25.5]} 38...
b4 {[%clk 0:01:12.5]} 39. cxb4 {[%clk 0:01:22.2]} 39... Qf2 {[%clk 0:01:09.9]}
40. Qc2 {[%clk 0:01:18.7]} 40... Qe3+ {[%clk 0:01:05.2]} 41. Ka2 {[%clk
0:01:11.4]} 41... Qa7+ {[%clk 0:01:04.4]} 42. Ba4 {[%clk 0:01:11.4]} 42... Qd4
{[%clk 0:01:02.1]} 43. b5 {[%clk 0:01:08.8]} 43... Qxg4 {[%clk 0:00:57.9]} 44.
Qc5 {[%clk 0:01:05.7]} 44... Qxa4+ {[%clk 0:00:56.5]} 0-1

[Event "*** Titled Tuesday Blitz"]
[Site "Chess.com"]
[Date "2020.05.05"]
[Round "1"]
[White "Koksik_13"]
[Black "ItsCheckM8Mate"]
[Result "1-0"]
[WhiteElo "2594"]
[BlackElo "2264"]
[TimeControl "180+1"]
[EndTime "10:06:18 PDT"]
[Termination "Koksik_13 won by resignation"]

1. d4 {[%clk 0:03:00.9]} 1... Nf6 {[%clk 0:02:59]} 2. Nc3 {[%clk 0:03:01.3]}
2... d5 {[%clk 0:02:58.4]} 3. Bf4 {[%clk 0:03:01.6]} 3... e6 {[%clk 0:02:46.8]}
4. Nb5 {[%clk 0:03:01.6]} 4... Na6 {[%clk 0:02:43.9]} 5. e3 {[%clk 0:03:01.8]}
5... Be7 {[%clk 0:02:37.7]} 6. h3 {[%clk 0:03:00.4]} 6... O-O {[%clk 0:02:37.4]}
7. Nf3 {[%clk 0:02:59.9]} 7... c6 {[%clk 0:02:33.4]} 8. Nc3 {[%clk 0:02:58.8]}
8... c5 {[%clk 0:02:28.9]} 9. Bxa6 {[%clk 0:02:58]} 9... bxa6 {[%clk 0:02:28.6]}
10. O-O {[%clk 0:02:58.3]} 10... Bb7 {[%clk 0:02:22.6]} 11. Ne5 {[%clk
0:02:57.2]} 11... Rc8 {[%clk 0:02:22.4]} 12. Rb1 {[%clk 0:02:52.1]} 12... Qb6
{[%clk 0:01:54.4]} 13. Bg5 {[%clk 0:02:51.6]} 13... Rfd8 {[%clk 0:01:52]} 14.
Re1 {[%clk 0:02:49.6]} 14... h6 {[%clk 0:01:49.9]} 15. Bh4 {[%clk 0:02:48.4]}
15... a5 {[%clk 0:01:40.2]} 16. Ng4 {[%clk 0:02:48.7]} 16... cxd4 {[%clk
0:01:25.3]} 17. exd4 {[%clk 0:02:41.4]} 17... Kh7 {[%clk 0:01:19.4]} 18. Qd3+
{[%clk 0:02:35.1]} 18... Kh8 {[%clk 0:01:15.6]} 19. Bxf6 {[%clk 0:02:34]} 19...
Bxf6 {[%clk 0:01:14.6]} 20. Nxf6 {[%clk 0:02:34]} 20... gxf6 {[%clk 0:01:14.8]}
21. Na4 {[%clk 0:02:21.2]} 21... Qc7 {[%clk 0:01:08.8]} 22. Nc5 {[%clk
0:02:19.8]} 22... Rg8 {[%clk 0:01:08.4]} 23. Qf3 {[%clk 0:02:11.8]} 23... Rg6
{[%clk 0:01:06.1]} 24. Re3 {[%clk 0:02:06.5]} 24... Rcg8 {[%clk 0:01:05.7]} 25.
g3 {[%clk 0:02:06.6]} 25... e5 {[%clk 0:01:03.7]} 26. Nxb7 {[%clk 0:01:59.7]}
26... e4 {[%clk 0:00:59.1]} 27. Qf5 {[%clk 0:01:55.5]} 27... Qxb7 {[%clk
0:00:58.9]} 28. b3 {[%clk 0:01:51.2]} 28... Qc6 {[%clk 0:00:57.6]} 29. Rc1
{[%clk 0:01:49.9]} 29... a4 {[%clk 0:00:53.6]} 30. h4 {[%clk 0:01:49.2]} 30...
axb3 {[%clk 0:00:50.7]} 31. axb3 {[%clk 0:01:50.1]} 31... a5 {[%clk 0:00:38.8]}
32. c4 {[%clk 0:01:49.8]} 32... Rd8 {[%clk 0:00:30.5]} 33. Rec3 {[%clk
0:01:37.7]} 33... Qe6 {[%clk 0:00:17.4]} 34. Qf4 {[%clk 0:01:35.1]} 34... dxc4
{[%clk 0:00:15.2]} 35. Rxc4 {[%clk 0:01:34.4]} 35... Kh7 {[%clk 0:00:14]} 36.
Rc6 {[%clk 0:01:31.6]} 36... Qxb3 {[%clk 0:00:09.9]} 37. Rxf6 {[%clk 0:01:27.5]}
37... Rxf6 {[%clk 0:00:10]} 38. Qxf6 {[%clk 0:01:27.9]} 38... Rd7 {[%clk
0:00:09.3]} 39. Qf5+ {[%clk 0:01:27.1]} 1-0

[Event "*** Titled Tuesday Blitz"]
[Site "Chess.com"]
[Date "2020.05.05"]
[Round "1"]
[White "Spartakus1975"]
[Black "WeAintSurePal"]
[Result "1-0"]
[WhiteElo "2754"]
[BlackElo "2395"]
[TimeControl "180+1"]
[EndTime "10:06:19 PDT"]
[Termination "Spartakus1975 won by resignation"]

1. e4 {[%clk 0:03:00.9]} 1... e5 {[%clk 0:02:53.8]} 2. Nf3 {[%clk 0:02:54.3]}
2... Nc6 {[%clk 0:02:52.4]} 3. Bb5 {[%clk 0:02:54.5]} 3... a6 {[%clk 0:02:50.3]}
4. Bxc6 {[%clk 0:02:53.4]} 4... dxc6 {[%clk 0:02:51.2]} 5. O-O {[%clk
0:02:52.2]} 5... Qf6 {[%clk 0:02:43.3]} 6. d4 {[%clk 0:02:48]} 6... exd4 {[%clk
0:02:42.2]} 7. Qxd4 {[%clk 0:02:46.1]} 7... Qxd4 {[%clk 0:02:39.3]} 8. Nxd4
{[%clk 0:02:45.2]} 8... c5 {[%clk 0:02:09.3]} 9. Ne2 {[%clk 0:02:44.1]} 9... Be6
{[%clk 0:02:07.7]} 10. Nbc3 {[%clk 0:02:38.7]} 10... O-O-O {[%clk 0:02:07]} 11.
f3 {[%clk 0:02:32.9]} 11... f6 {[%clk 0:02:06.7]} 12. Be3 {[%clk 0:02:29.7]}
12... Bd6 {[%clk 0:02:01.8]} 13. Bf4 {[%clk 0:02:29.1]} 13... Ne7 {[%clk
0:02:00.5]} 14. Rad1 {[%clk 0:02:26.9]} 14... Bxf4 {[%clk 0:01:39.5]} 15. Nxf4
{[%clk 0:02:26.1]} 15... Bf7 {[%clk 0:01:40.4]} 16. Kf2 {[%clk 0:02:20.3]} 16...
b6 {[%clk 0:01:39.1]} 17. a3 {[%clk 0:02:15.1]} 17... Rxd1 {[%clk 0:01:36.2]}
18. Rxd1 {[%clk 0:02:14.2]} 18... Rd8 {[%clk 0:01:37.1]} 19. Rxd8+ {[%clk
0:02:13.8]} 19... Kxd8 {[%clk 0:01:38]} 20. h4 {[%clk 0:02:12.1]} 20... Kd7
{[%clk 0:01:35.2]} 21. g4 {[%clk 0:02:10.8]} 21... Kd6 {[%clk 0:01:33.6]} 22.
Ke3 {[%clk 0:02:06.9]} 22... Nc6 {[%clk 0:01:26.2]} 23. Nce2 {[%clk 0:02:03.3]}
23... Ne5 {[%clk 0:01:24.6]} 24. b3 {[%clk 0:01:59.8]} 24... a5 {[%clk
0:01:19.6]} 25. Nd3 {[%clk 0:01:58.4]} 25... Nc6 {[%clk 0:01:09.8]} 26. Nb2
{[%clk 0:01:50.9]} 26... Ne5 {[%clk 0:01:06.8]} 27. g5 {[%clk 0:01:43.5]} 27...
fxg5 {[%clk 0:01:03.8]} 28. hxg5 {[%clk 0:01:42.9]} 28... h5 {[%clk 0:00:55.4]}
29. gxh6 {[%clk 0:01:38.5]} 29... gxh6 {[%clk 0:00:56.3]} 30. f4 {[%clk
0:01:29.1]} 30... Ng4+ {[%clk 0:00:55.4]} 31. Kf3 {[%clk 0:01:28.5]} 31... Bh5
{[%clk 0:00:49.8]} 32. Ng3 {[%clk 0:01:25.3]} 32... Nf6+ {[%clk 0:00:44.9]} 33.
Nxh5 {[%clk 0:01:24.9]} 33... Nxh5 {[%clk 0:00:45.8]} 34. Kg4 {[%clk 0:01:16.1]}
34... Ng7 {[%clk 0:00:45.3]} 35. Nc4+ {[%clk 0:01:13.5]} 35... Ke6 {[%clk
0:00:44.7]} 36. f5+ {[%clk 0:01:11.7]} 36... Kf6 {[%clk 0:00:36.5]} 37. e5+
{[%clk 0:01:11.1]} 37... Kf7 {[%clk 0:00:36.9]} 38. Ne3 {[%clk 0:01:06.7]} 38...
c6 {[%clk 0:00:31.4]} 39. Nc4 {[%clk 0:01:03.7]} 39... b5 {[%clk 0:00:31.3]} 40.
Nxa5 {[%clk 0:01:03.2]} 1-0

[Event "*** Titled Tuesday Blitz"]
[Site "Chess.com"]
[Date "2020.05.05"]
[Round "1"]
[White "zala02"]
[Black "Gennady_Kozlov"]
[Result "0-1"]
[WhiteElo "2243"]
[BlackElo "2575"]
[TimeControl "180+1"]
[EndTime "10:06:19 PDT"]
[Termination "Gennady_Kozlov won by checkmate"]

1. d4 {[%clk 0:03:00.9]} 1... e5 {[%clk 0:02:57.4]} 2. dxe5 {[%clk 0:02:58.3]}
2... Nc6 {[%clk 0:02:57]} 3. Nf3 {[%clk 0:02:55.6]} 3... Bc5 {[%clk 0:02:53.4]}
4. e3 {[%clk 0:02:49.2]} 4... Nge7 {[%clk 0:02:52.1]} 5. Be2 {[%clk 0:02:39.6]}
5... Ng6 {[%clk 0:02:50.9]} 6. O-O {[%clk 0:02:37.4]} 6... Qe7 {[%clk
0:02:49.7]} 7. b3 {[%clk 0:02:21.9]} 7... Ncxe5 {[%clk 0:02:47.9]} 8. Bb2 {[%clk
0:02:20.2]} 8... d6 {[%clk 0:02:45.3]} 9. c4 {[%clk 0:02:18.8]} 9... O-O {[%clk
0:02:43.4]} 10. Nc3 {[%clk 0:02:12.7]} 10... Nxf3+ {[%clk 0:02:37.3]} 11. Bxf3
{[%clk 0:02:12.2]} 11... c6 {[%clk 0:02:36.5]} 12. Rc1 {[%clk 0:01:59.3]} 12...
Ne5 {[%clk 0:02:29.3]} 13. Be2 {[%clk 0:01:58]} 13... Bf5 {[%clk 0:02:22.8]} 14.
Na4 {[%clk 0:01:53.2]} 14... Rad8 {[%clk 0:02:18]} 15. Nc3 {[%clk 0:01:29.6]}
15... Qh4 {[%clk 0:02:07.2]} 16. g3 {[%clk 0:00:56.2]} 16... Qh3 {[%clk
0:02:05.1]} 17. Re1 {[%clk 0:00:23.6]} 17... Bg4 {[%clk 0:01:52.3]} 18. Bf1
{[%clk 0:00:10]} 18... Qh5 {[%clk 0:01:50.3]} 19. Be2 {[%clk 0:00:10.3]} 19...
Bxe2 {[%clk 0:01:43.6]} 20. Qxe2 {[%clk 0:00:08.5]} 20... Nf3+ {[%clk
0:01:44.5]} 21. Kf1 {[%clk 0:00:02.7]} 21... Qh3# {[%clk 0:00:34]} 0-1

[Event "*** Titled Tuesday Blitz"]
[Site "Chess.com"]
[Date "2020.05.05"]
[Round "1"]
[White "kleinebeer98"]
[Black "Rap_woyska"]
[Result "1-0"]
[WhiteElo "2693"]
[BlackElo "2359"]
[TimeControl "180+1"]
[EndTime "10:06:20 PDT"]
[Termination "kleinebeer98 won by resignation"]

1. e4 {[%clk 0:03:00.9]} 1... e6 {[%clk 0:02:59.8]} 2. d4 {[%clk 0:02:59.6]}
2... d5 {[%clk 0:03:00.2]} 3. Nc3 {[%clk 0:02:59.1]} 3... Nf6 {[%clk 0:03:00.3]}
4. Bg5 {[%clk 0:02:58.8]} 4... dxe4 {[%clk 0:02:59.4]} 5. Nxe4 {[%clk
0:02:59.1]} 5... Be7 {[%clk 0:02:59.8]} 6. Bxf6 {[%clk 0:02:59.2]} 6... gxf6
{[%clk 0:03:00.7]} 7. Nf3 {[%clk 0:02:58.3]} 7... f5 {[%clk 0:03:01]} 8. Nc3
{[%clk 0:02:56.7]} 8... a6 {[%clk 0:03:01.3]} 9. g3 {[%clk 0:02:55.9]} 9... b5
{[%clk 0:03:01.4]} 10. Bg2 {[%clk 0:02:50.1]} 10... Bb7 {[%clk 0:03:01.6]} 11.
Qe2 {[%clk 0:02:47.5]} 11... Qd6 {[%clk 0:02:27.4]} 12. O-O-O {[%clk 0:02:25.3]}
12... Nd7 {[%clk 0:02:25.7]} 13. Rhe1 {[%clk 0:02:10]} 13... Nb6 {[%clk
0:01:43.8]} 14. d5 {[%clk 0:01:37.5]} 14... Nxd5 {[%clk 0:01:31.8]} 15. Nxd5
{[%clk 0:01:30.5]} 15... Bxd5 {[%clk 0:01:32.7]} 16. Ne5 {[%clk 0:01:27.8]}
16... c6 {[%clk 0:01:21.3]} 17. Nxc6 {[%clk 0:01:07.6]} 17... Bxg2 {[%clk
0:00:31.4]} 18. Rxd6 {[%clk 0:01:03.2]} 18... Bxd6 {[%clk 0:00:32.3]} 19. f3
{[%clk 0:00:55.7]} 19... Bh3 {[%clk 0:00:21.8]} 20. Qd2 {[%clk 0:00:53.5]} 20...
Be7 {[%clk 0:00:14.6]} 21. Qh6 {[%clk 0:00:46.8]} 21... Bg2 {[%clk 0:00:13.1]}
22. Rxe6 {[%clk 0:00:46.8]} 22... fxe6 {[%clk 0:00:03.9]} 23. Qxe6 {[%clk
0:00:47.7]} 1-0